fUSD/lending_fUSD_20240216
["ID","MTS","AMOUNT","RATE_DAILY","PERIOD"]
[314186025,1708054242273,-500.0,0.00039076,7]
[314186026,1708054242283,-500.0,0.00039076,7]
[314186027,1708054242292,-500.0,0.00039076,7]
[314186028,1708054242302,-500.0,0.00039076,7]
[314186029,1708054242311,-500.0,0.00039076,7]
[314186030,1708054242321,-500.0,0.00039076,7]
[314186031,1708054242331,-500.0,0.00039076,7]
[314186032,1708054242341,-1367.93,0.00039076,7]
[314186033,1708054242351,-682.03,0.00039076,7]
[314186034,1708054242360,-500.0,0.00039076,7]
[314186035,1708054242369,-500.0,0.00039076,7]
[314186036,1708054242379,-500.0,0.00039076,7]
[314186037,1708054242391,-500.0,0.00039076,7]
[314186038,1708054242400,-500.0,0.00039076,7]
[314186039,1708054242410,-500.0,0.00039076,7]
[314186040,1708054242419,-500.0,0.00039076,7]
[314186041,1708054242430,-500.0,0.00039076,7]
[314186042,1708054242440,-205.39830933,0.00039076,7]
[314186043,1708054242450,-500.0,0.00039076,7]
[314186044,1708054242460,-500.0,0.00039076,7]
[314186045,1708054242471,-500.0,0.00039076,7]
[314186046,1708054242481,-500.0,0.00039076,7]
[314186047,1708054242492,-500.0,0.00039076,7]
[314186048,1708054242502,-500.0,0.00039076,7]
[314186049,1708054242511,-500.0,0.00039076,7]
[314186050,1708054242520,-500.0,0.00039076,7]
[314186051,1708054242530,-1123.89,0.00039076,7]
[314186052,1708054242540,-500.0,0.00039076,7]
[314186053,1708054242549,-500.0,0.00039076,7]
[314186054,1708054242558,-500.0,0.00039076,7]
[314186055,1708054242568,-581.92854167,0.00039076,7]
[314186057,1708054242577,-500.0,0.00039076,7]
[314186059,1708054242587,-500.0,0.00039076,7]
[314186061,1708054242596,-500.0,0.00039076,7]
[314186063,1708054242605,-500.0,0.00039076,7]
[314186065,1708054242614,-500.0,0.00039076,7]
[314186067,1708054242623,-5694.96,0.00039076,7]
[314186069,1708054242633,-604.94,0.00039076,7]
[314186071,1708054242642,-584.68052669,0.00039076,7]
[314186073,1708054242651,-500.0,0.00039076,7]
[314186075,1708054242660,-500.0,0.00039076,7]
[314186077,1708054242669,-500.0,0.00039076,7]
[314186079,1708054242678,-570.42069965,0.00039076,7]
[314186081,1708054242687,-500.0,0.00039076,7]
[314186083,1708054242697,-6295.14,0.00039076,7]
[314186085,1708054242707,-500.0,0.00039076,7]
[314186087,1708054242716,-500.0,0.00039076,7]
[314186089,1708054242726,-500.0,0.00039076,7]
[314186091,1708054242735,-500.0,0.00039076,7]
[314186093,1708054242744,-500.0,0.00039076,7]
[314186095,1708054242753,-965.53,0.00039076,7]
[314186097,1708054242762,-500.0,0.00039076,7]
[314186099,1708054242771,-500.0,0.00039076,7]
[314186101,1708054242780,-500.0,0.00039076,7]
[314186103,1708054242789,-500.0,0.00039076,7]
[314186105,1708054242798,-500.0,0.00039076,7]
[314186107,1708054242807,-500.0,0.00039076,7]
[314186109,1708054242816,-500.0,0.00039076,7]
[314186111,1708054242825,-500.0,0.00039076,7]
[314186113,1708054242834,-500.0,0.00039076,7]
[314186114,1708054242843,-500.0,0.00039076,7]
[314186117,1708054242853,-500.0,0.00039076,7]
[314186121,1708054242863,-151.0,0.00039089,7]
[314186124,1708054242873,-500.0,0.0003911,7]
[314186126,1708054242883,-1845.97,0.0003911,7]
[314186127,1708054242892,-500.0,0.0003911,7]
[314186128,1708054242901,-500.0,0.0003911,7]
[314186129,1708054242910,-500.0,0.0003911,7]
[314186130,1708054242919,-1337.12511225,0.00039142,2]
[314186132,1708054242928,-35463.02775165,0.00039145,2]
[314186134,1708054242937,-1000.91861138,0.00039145,2]
[314186136,1708054242946,-171.021624,0.00039148,24]
[314186137,1708054242955,-1164.85822244,0.00039171,2]
[314186139,1708054242964,-151.021624,0.00039172,24]
[314186140,1708054242973,-580.35,0.00039178,7]
[314186142,1708054242982,-227.48037839,0.00039178,7]
[314186144,1708054242992,-500.0,0.00039178,7]
[314186146,1708054243001,-500.0,0.00039178,7]
[314186148,1708054243010,-500.0,0.00039178,7]
[314186150,1708054243019,-604.88209581,0.00039178,7]
[314186152,1708054243028,-500.0,0.00039178,7]
[314186154,1708054243038,-500.0,0.00039178,7]
[314186156,1708054243047,-500.0,0.00039178,7]
[314186158,1708054243056,-500.0,0.00039178,7]
[314186160,1708054243065,-500.0,0.00039178,7]
[314186162,1708054243074,-500.0,0.00039178,7]
[314186164,1708054243084,-500.0,0.00039178,7]
[314186167,1708054243093,-383.41453293,0.00039178,7]
[314186170,1708054243102,-500.0,0.00039178,7]
[314186173,1708054243112,-500.0,0.00039178,7]
[314186176,1708054243122,-1263.37,0.00039178,7]
[314186179,1708054243131,-500.0,0.00039178,7]
[314186183,1708054243140,-513.32,0.00039178,7]
[314186184,1708054243150,-500.0,0.00039178,7]
[314186187,1708054243159,-552.52,0.00039178,7]
[314186191,1708054243169,-151.0,0.00039226,7]
[314186194,1708054243178,-156.021624,0.00039248,26]
[314186197,1708054243187,-213.77,0.0003926,2]
[314186200,1708054243197,-1337.12511225,0.00039269,2]
[314186203,1708054243206,-151.021624,0.00039272,24]
[314186205,1708054243216,-1232.220869,0.000393,2]
[314186208,1708054243226,-1520.209279,0.000393,29]
[314186211,1708054243236,-1164.85822244,0.00039327,2]
[314186213,1708054243245,-151.021624,0.00039348,26]
[314186215,1708054243255,-500.0,0.0003935,7]
[314186217,1708054243264,-500.0,0.0003935,7]
[314186219,1708054243274,-500.0,0.0003935,7]
[314186221,1708054243283,-500.0,0.0003935,7]
[314186223,1708054243292,-500.0,0.0003935,7]
[314186226,1708054243302,-204.38115332,0.0003935,7]
[314186228,1708054243311,-500.0,0.0003935,7]
[314186230,1708054243320,-500.0,0.0003935,7]
[314186232,1708054243330,-500.0,0.0003935,7]
[314186234,1708054243339,-597.90648904,0.0003935,7]
[314186236,1708054243349,-1367.93,0.0003935,7]
[314186238,1708054243358,-682.03,0.0003935,7]
[314186240,1708054243367,-500.0,0.0003935,7]
[314186242,1708054243376,-500.0,0.0003935,7]
[314186244,1708054243388,-500.0,0.0003935,7]
[314186246,1708054243399,-500.0,0.0003935,7]
[314186248,1708054243408,-160.56522104,0.0003935,7]
[314186250,1708054243417,-500.0,0.0003935,7]
[314186252,1708054243426,-500.0,0.0003935,7]
[314186254,1708054243437,-500.0,0.0003935,7]
[314186256,1708054243446,-500.0,0.0003935,7]
[314186257,1708054243456,-500.0,0.0003935,7]
[314186259,1708054243465,-500.0,0.0003935,7]
[314186262,1708054243475,-618.85279716,0.0003935,7]
[314186264,1708054243484,-500.0,0.0003935,7]
[314186266,1708054243494,-500.0,0.0003935,7]
[314186268,1708054243503,-500.0,0.0003935,7]
[314186269,1708054243512,-1123.89,0.0003935,7]
[314186271,1708054243522,-500.0,0.0003935,7]
[314186273,1708054243531,-500.0,0.0003935,7]
[314186275,1708054243540,-500.0,0.0003935,7]
[314186277,1708054243549,-500.0,0.0003935,7]
[314186279,1708054243558,-279.0878265,0.0003935,7]
[314186281,1708054243567,-500.0,0.0003935,7]
[314186283,1708054243576,-500.0,0.0003935,7]
[314186285,1708054243586,-5694.96,0.0003935,7]
[314186287,1708054243595,-604.94,0.0003935,7]
[314186289,1708054243604,-500.0,0.0003935,7]
[314186290,1708054243614,-500.0,0.0003935,7]
[314186292,1708054243623,-500.0,0.0003935,7]
[314186293,1708054243632,-6295.14,0.0003935,7]
[314186295,1708054243642,-238.13108209,0.0003935,7]
[314186297,1708054243651,-500.0,0.0003935,7]
[314186299,1708054243660,-500.0,0.0003935,7]
[314186300,1708054243671,-188.14385199,0.0003935,7]
[314186302,1708054243680,-965.53,0.0003935,7]
[314186303,1708054243689,-500.0,0.0003935,7]
[314186305,1708054243698,-500.0,0.0003935,7]
[314186307,1708054243707,-500.0,0.0003935,7]
[314186309,1708054243717,-500.0,0.0003935,7]
[314186310,1708054243726,-231.82343735,0.0003935,7]
[314186312,1708054243735,-500.0,0.0003935,7]
[314186314,1708054243746,-500.0,0.0003935,7]
[314186315,1708054243755,-151.0,0.00039363,7]
[314186317,1708054243764,-151.021624,0.00039372,24]
[314186319,1708054243773,-2635.21525674,0.00039375,2]
[314186320,1708054243782,-234.17534779,0.0003938,2]
[314186322,1708054243791,-500.0,0.00039384,7]
[314186324,1708054243800,-1845.97,0.00039384,7]
[314186326,1708054243810,-416.53471171,0.00039384,7]
[314186328,1708054243819,-500.0,0.00039384,7]
[314186331,1708054243829,-500.0,0.00039384,7]
[314186334,1708054243839,-154.9644948,0.00039385,4]
[314186337,1708054243849,-572.0,0.00039392,7]
[314186338,1708054243858,-342.0,0.00039392,7]
[314186340,1708054243868,-400.0,0.00039392,7]
[314186342,1708054243877,-150.0,0.00039392,7]
[314186343,1708054243887,-151.021624,0.00039448,26]
[314186345,1708054243897,-500.0,0.00039451,10]
[314186347,1708054243906,-580.35,0.00039452,7]
[314186348,1708054243915,-500.0,0.00039452,7]
[314186350,1708054243925,-500.0,0.00039452,7]
[314186352,1708054243934,-500.0,0.00039452,7]
[314186354,1708054243943,-500.0,0.00039452,7]
[314186355,1708054243953,-500.0,0.00039452,7]
[314186357,1708054243962,-500.0,0.00039452,7]
[314186359,1708054243971,-1263.37,0.00039452,7]
[314186360,1708054243980,-513.32,0.00039452,7]
[314186362,1708054243989,-500.0,0.00039452,7]
[314186364,1708054243998,-552.52,0.00039452,7]
[314186366,1708054244007,-259.283563,0.00039452,14]
[314186368,1708054244017,-151.021624,0.00039472,24]
[314186369,1708054244026,-51924.1345053,0.00039476,10]
[314186371,1708054244035,-76231.574286,0.00039476,4]
[314186373,1708054244043,-5000.0,0.0003948,7]
[314186375,1708054244052,-500.0,0.00039485,31]
[314186376,1708054244062,-371.37237527,0.00039485,31]
[314186378,1708054244071,-500.0,0.00039485,31]
[314186380,1708054244081,-500.0,0.00039485,31]
[314186382,1708054244090,-573.65920733,0.00039485,31]
[314186384,1708054244099,-500.0,0.00039485,31]
[314186385,1708054244109,-500.0,0.00039485,31]
[314186387,1708054244118,-500.0,0.00039485,31]
[314186389,1708054244127,-500.0,0.00039485,31]
[314186391,1708054244136,-500.0,0.00039485,31]
[314186393,1708054244145,-500.0,0.00039485,31]
[314186394,1708054244154,-500.0,0.00039485,31]
[314186396,1708054244164,-500.0,0.00039485,31]
[314186398,1708054244173,-500.0,0.00039485,31]
[314186400,1708054244182,-500.0,0.00039485,31]
[314186401,1708054244191,-500.0,0.00039485,31]
[314186403,1708054244200,-500.0,0.00039485,31]
[314186405,1708054244208,-500.0,0.00039485,31]
[314186407,1708054244217,-500.0,0.00039485,31]
[314186409,1708054244226,-500.0,0.00039485,31]
[314186410,1708054244235,-362.43615779,0.00039485,31]
[314186412,1708054244246,-938.19572758,0.00039486,9]
[314186414,1708054244255,-151.0,0.0003949,30]
[314186416,1708054244264,-150.0,0.0003949,30]
[314186417,1708054244273,-151.0,0.000395,7]
[314186419,1708054244283,-1000.0,0.000395,2]
[314186421,1708054244291,-2000.0,0.000395,7]
[314186423,1708054244300,-3933.0897,0.000395,7]
[314186425,1708054244309,-55555.0,0.00039524,3]
[314186426,1708054244318,-5000.0,0.00039524,3]
[314186428,1708054244328,-151.021624,0.00039548,25]
[314186430,1708054244337,-187.97347713,0.00039548,2]
[314186432,1708054244346,-1009.876,0.00039553,2]
[314186433,1708054244355,-238.579,0.00039553,2]
[314186435,1708054244365,-431.769,0.00039553,2]
[314186437,1708054244374,-858.0,0.00039553,2]
[314186439,1708054244385,-1138.0,0.00039553,2]
[314186441,1708054244396,-454.105,0.00039553,2]
[314186442,1708054244405,-323.06,0.00039553,2]
[314186443,1708054244414,-150.843,0.00039553,2]
[314186444,1708054244423,-454.0,0.00039553,2]
[314186445,1708054244432,-150.0,0.00039553,2]
[314186446,1708054244441,-8164.0,0.00039553,2]
[314186447,1708054244451,-2835.0,0.00039553,2]
[314186448,1708054244460,-2927.0,0.00039553,2]
[314186449,1708054244471,-4060.0,0.00039553,2]
[314186450,1708054244481,-507.851,0.00039553,2]
[314186451,1708054244489,-19846.0,0.00039553,2]
[314186452,1708054244499,-2289.0,0.00039553,2]
[314186454,1708054244508,-842.0,0.00039553,2]
[314186456,1708054244517,-953.0,0.00039553,2]
[314186458,1708054244526,-1037.0,0.00039553,2]
[314186460,1708054244535,-1231.0,0.00039553,2]
[314186462,1708054244546,-217.4,0.00039553,2]
[314186463,1708054244554,-1254.0,0.00039553,2]
[314186466,1708054244564,-200.0,0.00039561,15]
[314186468,1708054244572,-800.0,0.00039561,15]
[314186469,1708054244583,-200.0,0.00039561,20]
[314186471,1708054244592,-200.0,0.00039576,20]
[314186473,1708054244601,-800.0,0.00039581,15]
[314186475,1708054244611,-200.0,0.00039591,10]
[314186477,1708054244620,-200.0,0.00039591,20]
[314186479,1708054244629,-500.0,0.00039591,20]
[314186481,1708054244638,-1164.85822244,0.00039596,2]
[314186483,1708054244648,-150.92137682,0.000396,2]
[314186485,1708054244658,-200.0,0.000396,15]
[314186487,1708054244669,-800.0,0.000396,15]
[314186489,1708054244679,-200.0,0.00039605,20]
[314186491,1708054244688,-19745.08316842,0.0003961,2]
[314186493,1708054244698,-76231.574286,0.00039614,4]
[314186495,1708054244707,-800.0,0.0003962,15]
[314186497,1708054244718,-200.0,0.0003962,20]
[314186499,1708054244727,-500.0,0.0003962,20]
[314186501,1708054244737,-500.0,0.00039624,7]
[314186503,1708054244747,-500.0,0.00039624,7]
[314186505,1708054244757,-500.0,0.00039624,7]
[314186507,1708054244766,-500.0,0.00039624,7]
[314186509,1708054244776,-500.0,0.00039624,7]
[314186511,1708054244786,-500.0,0.00039624,7]
[314186513,1708054244795,-500.0,0.00039624,7]
[314186515,1708054244805,-1367.93,0.00039624,7]
[314186517,1708054244815,-682.03,0.00039624,7]
[314186519,1708054244824,-500.0,0.00039624,7]
[314186535,1708054244960,-500.0,0.00039624,7]
[314186538,1708054244971,-633.03224068,0.00039624,7]
[314186540,1708054244981,-500.0,0.00039624,7]
[314186542,1708054244990,-500.0,0.00039624,7]
[314186544,1708054245000,-500.0,0.00039624,7]
[314186545,1708054245009,-601.21442329,0.00039624,7]
[314186548,1708054245019,-500.0,0.00039624,7]
[314186550,1708054245028,-500.0,0.00039624,7]
[314186552,1708054245037,-500.0,0.00039624,7]
[314186554,1708054245046,-1123.89,0.00039624,7]
[314186556,1708054245055,-500.0,0.00039624,7]
[314186558,1708054245064,-500.0,0.00039624,7]
[314186560,1708054245073,-513.83439317,0.00039624,7]
[314186561,1708054245082,-500.0,0.00039624,7]
[314186563,1708054245093,-500.0,0.00039624,7]
[314186566,1708054245103,-5694.96,0.00039624,7]
[314186567,1708054245112,-604.94,0.00039624,7]
[314186569,1708054245121,-500.0,0.00039624,7]
[314186571,1708054245130,-500.0,0.00039624,7]
[314186573,1708054245140,-500.0,0.00039624,7]
[314186575,1708054245149,-6295.14,0.00039624,7]
[314186578,1708054245159,-500.0,0.00039624,7]
[314186580,1708054245169,-500.0,0.00039624,7]
[314186582,1708054245178,-965.53,0.00039624,7]
[314186583,1708054245187,-500.0,0.00039624,7]
[314186585,1708054245196,-500.0,0.00039624,7]
[314186587,1708054245206,-500.0,0.00039624,7]
[314186590,1708054245216,-500.0,0.00039624,7]
[314186591,1708054245227,-500.0,0.00039624,7]
[314186593,1708054245236,-161.23,0.0003963,2]
[314186596,1708054245247,-200.0,0.00039635,20]
[314186597,1708054245256,-151.0,0.00039637,7]
[314186600,1708054245266,-800.0,0.00039639,15]
[314186602,1708054245275,-151.021624,0.00039648,25]
[314186604,1708054245284,-200.0,0.00039649,20]
[314186606,1708054245297,-500.0,0.00039649,20]
[314186608,1708054245306,-500.0,0.00039658,7]
[314186610,1708054245314,-1845.97,0.00039658,7]
[314186612,1708054245324,-217.14824301,0.00039658,7]
[314186614,1708054245333,-500.0,0.00039658,7]
[314186616,1708054245342,-800.0,0.00039659,15]
[314186618,1708054245352,-200.0,0.00039664,20]
[314186620,1708054245361,-1349.79040132,0.00039664,2]
[314186622,1708054245370,-200.0,0.00039678,15]
[314186624,1708054245380,-800.0,0.00039678,15]
[314186626,1708054245391,-200.0,0.00039678,10]
[314186628,1708054245400,-200.0,0.00039678,20]
[314186630,1708054245409,-500.0,0.00039678,20]
[314186632,1708054245419,-155.01,0.000397,3]
[314186634,1708054245428,-569.45,0.000397,3]
[314186636,1708054245438,-569.45,0.000397,3]
[314186638,1708054245447,-569.45,0.000397,3]
[314186640,1708054245455,-569.45,0.000397,3]
[314186642,1708054245465,-569.45,0.000397,3]
[314186644,1708054245476,-569.45,0.000397,3]
[314186645,1708054245486,-569.45,0.000397,3]
[314186647,1708054245497,-569.45,0.000397,3]
[314186649,1708054245506,-569.45,0.000397,3]
[314186652,1708054245515,-569.45,0.000397,3]
[314186654,1708054245525,-569.45,0.000397,3]
[314186656,1708054245534,-569.45,0.000397,3]
[314186657,1708054245543,-569.45,0.000397,3]
[314186659,1708054245553,-569.45,0.000397,3]
[314186661,1708054245562,-569.45,0.000397,3]
[314186663,1708054245571,-569.45,0.000397,3]
[314186665,1708054245581,-569.45,0.000397,3]
[314186667,1708054245590,-569.45,0.000397,3]
[314186669,1708054245599,-569.45,0.000397,3]
[314186671,1708054245607,-569.45,0.000397,3]
[314186673,1708054245617,-178.59218148,0.000397,13]
[314186675,1708054245626,-500.0,0.00039726,7]
[314186677,1708054245635,-500.0,0.00039726,7]
[314186679,1708054245644,-500.0,0.00039726,7]
[314186682,1708054245653,-500.0,0.00039726,7]
[314186683,1708054245662,-500.0,0.00039726,7]
[314186686,1708054245672,-1263.37,0.00039726,7]
[314186687,1708054245682,-513.32,0.00039726,7]
[314186689,1708054245691,-500.0,0.00039726,7]
[314186691,1708054245700,-552.52,0.00039726,7]
[314186693,1708054245709,-937.5,0.00039726,2]
[314186695,1708054245718,-424.58,0.00039726,2]
[314186697,1708054245727,-405.25,0.00039726,2]
[314186699,1708054245736,-915.36,0.00039726,2]
[314186701,1708054245747,-405.25,0.00039726,2]
[314186703,1708054245756,-915.36,0.00039726,2]
[314186705,1708054245765,-405.25,0.00039726,2]
[314186707,1708054245774,-915.36,0.00039726,2]
[314186709,1708054245784,-915.36,0.00039726,2]
[314186711,1708054245792,-405.25,0.00039726,2]
[314186713,1708054245802,-915.36,0.00039726,2]
[314186715,1708054245811,-405.25,0.00039726,2]
[314186717,1708054245820,-405.25,0.00039726,2]
[314186719,1708054245829,-915.36,0.00039726,2]
[314186721,1708054245838,-915.36,0.00039726,2]
[314186723,1708054245847,-405.25,0.00039726,2]
[314186725,1708054245856,-915.36,0.00039726,2]
[314186727,1708054245865,-839.37,0.00039726,2]
[314186729,1708054245874,-572.0,0.00039737,7]
[314186731,1708054245884,-342.0,0.00039737,7]
[314186734,1708054245893,-400.0,0.00039737,7]
[314186736,1708054245902,-150.0,0.00039737,7]
[314186738,1708054245911,-151.021624,0.00039748,25]
[314186740,1708054245921,-1688.0,0.00039752,7]
[314186742,1708054245930,-1688.0,0.00039756,7]
[314186744,1708054245939,-1688.0,0.00039758,7]
[314186746,1708054245948,-20000.0,0.0003976,2]
[314186749,1708054245957,-151.0,0.00039774,7]
[314186752,1708054245967,-173.59709461,0.00039779,13]
[314186755,1708054245976,-663.92,0.00039784,7]
[314186757,1708054245985,-1687.99,0.00039784,7]
[314186760,1708054245995,-76231.574286,0.0003979,5]
[314186763,1708054246004,-300.0,0.00039799,2]
[314186765,1708054246013,-300.0,0.00039799,2]
[314186767,1708054246022,-300.0,0.00039799,2]
[314186769,1708054246031,-231.59285315,0.00039799,2]
[314186771,1708054246040,-1000.0,0.00039799,2]
[314186773,1708054246049,-1000.0,0.00039799,2]
[314186775,1708054246058,-1000.0,0.00039799,2]
[314186777,1708054246067,-1000.0,0.00039799,2]
[314186779,1708054246076,-206.0436,0.00039799,2]
[314186781,1708054246085,-8364.0612,0.000398,2]
[314186783,1708054246094,-80121.51251901,0.000398,2]
[314186785,1708054246104,-1349.79040132,0.00039813,2]
[314186787,1708054246114,-2318.47315306,0.00039835,2]
[314186789,1708054246123,-1646.97849922,0.00039849,2]
[314186792,1708054246132,-277.93,0.00039856,2]
[314186794,1708054246142,-3030.93058605,0.00039858,2]
[314186796,1708054246151,-5664.52389188,0.00039858,2]
[314186798,1708054246161,-263.96651938,0.00039858,2]
[314186800,1708054246170,-716.92293994,0.00039858,2]
[314186802,1708054246179,-937.73490478,0.00039858,2]
[314186804,1708054246189,-393.0930504,0.00039868,2]
[314186805,1708054246198,-76231.574286,0.0003987,5]
[314186806,1708054246207,-150.0,0.00039879,2]
[314186807,1708054246216,-20000.0,0.00039888,7]
[314186808,1708054246225,-8406.12419111,0.0003989,13]
[314186809,1708054246233,-428.0,0.0003989,2]
[314186810,1708054246242,-156.38156638,0.00039893,2]
[314186811,1708054246252,-234.17534779,0.00039896,2]
[314186813,1708054246260,-500.0,0.00039898,7]
[314186815,1708054246269,-500.0,0.00039898,7]
[314186816,1708054246278,-500.0,0.00039898,7]
[314186819,1708054246288,-500.0,0.00039898,7]
[314186820,1708054246298,-500.0,0.00039898,7]
[314186822,1708054246307,-500.0,0.00039898,7]
[314186824,1708054246316,-500.0,0.00039898,7]
[314186826,1708054246325,-1367.93,0.00039898,7]
[314186828,1708054246334,-682.03,0.00039898,7]
[314186830,1708054246343,-500.0,0.00039898,7]
[314186833,1708054246353,-500.0,0.00039898,7]
[314186835,1708054246362,-500.0,0.00039898,7]
[314186837,1708054246371,-500.0,0.00039898,7]
[314186839,1708054246381,-500.0,0.00039898,7]
[314186840,1708054246393,-1123.89,0.00039898,7]
[314186842,1708054246402,-500.0,0.00039898,7]
[314186844,1708054246411,-5694.96,0.00039898,7]
[314186846,1708054246422,-604.94,0.00039898,7]
[314186848,1708054246431,-500.0,0.00039898,7]
[314186851,1708054246440,-6295.14,0.00039898,7]
[314186852,1708054246449,-500.0,0.00039898,7]
[314186854,1708054246458,-500.0,0.00039898,7]
[314186856,1708054246468,-965.53,0.00039898,7]
[314186858,1708054246477,-500.0,0.00039898,7]
[314186860,1708054246487,-500.0,0.00039898,7]
[314186862,1708054246497,-332.83541616,0.00039898,7]
[314186864,1708054246506,-500.0,0.00039898,7]
[314186866,1708054246515,-1000.0,0.00039899,2]
[314186868,1708054246524,-151.0,0.00039911,7]
[314186870,1708054246533,-500.0,0.00039932,7]
[314186872,1708054246542,-1845.97,0.00039932,7]
[314186874,1708054246552,-500.0,0.00039932,7]
[314186876,1708054246561,-1164.85822244,0.00039947,2]
[314186878,1708054246571,-76231.574286,0.00039949,5]
[314186881,1708054246580,-76231.574286,0.00039957,5]
[314186883,1708054246589,-147100.386632,0.00039959,2]
[314186885,1708054246599,-76231.574286,0.0003996,5]
[314186886,1708054246608,-35463.02775165,0.00039967,2]
[314186889,1708054246618,-1000.91861138,0.00039967,2]
[314186891,1708054246627,-1500.0,0.00039971,2]
[314186893,1708054246636,-76231.574286,0.00039973,5]
[314186895,1708054246645,-5000.0,0.00039989,14]
[314186897,1708054246654,-1000.0,0.00039989,14]
[314186899,1708054246663,-7347.3408772,0.00039993,2]
[314186901,1708054246672,-2663.0321832,0.00039993,2]
[314186902,1708054246681,-103998.4251193,0.00039993,2]
[314186904,1708054246690,-151.0,0.00039993,7]
[314186907,1708054246700,-151.0,0.00039993,7]
[314186909,1708054246709,-155.643189,0.00039993,7]
[314186911,1708054246718,-151.0,0.00039993,7]
[314186913,1708054246727,-151.0,0.00039993,7]
[314186915,1708054246737,-376.78730888,0.00039993,2]
[314186916,1708054246747,-177.610138,0.00039993,7]
[314186918,1708054246756,-151.0,0.00039996,7]
[314186920,1708054246764,-393.0930504,0.00039997,2]
[314186922,1708054246773,-150.01,0.00039998,2]
[314186924,1708054246782,-3316.80182207,0.00039998,2]
[314186926,1708054246792,-316189.62300351,0.0004,30]
[314186929,1708054246801,-268.17562421,0.0004,14]
[314186931,1708054246810,-447.41497558,0.0004,4]
[314186933,1708054246819,-22053.51746822,0.0004,7]
[314186935,1708054246828,-4786.05932736,0.0004,2]
[314186937,1708054246837,-157052.64039087,0.0004,30]
[314186939,1708054246846,-37254.48072227,0.0004,30]
[314186941,1708054246855,-2154.09428915,0.0004,2]
[314186942,1708054246864,-22012.9649,0.0004,15]
[314186944,1708054246873,-255.0,0.0004,12]
[314186947,1708054246882,-255.0,0.0004,12]
[314186949,1708054246891,-10000.0,0.0004,8]
[314186951,1708054246900,-2000.0,0.0004,7]
[314186952,1708054246909,-200.0,0.0004,7]
[314186954,1708054246918,-255.0,0.0004,12]
[314186956,1708054246927,-3000.0,0.0004,41]
[314186958,1708054246936,-300.0,0.0004,41]
[314186960,1708054246945,-255.0,0.0004,12]
[314186962,1708054246954,-5024.36979686,0.0004,7]
[314186964,1708054246963,-159.99019982,0.0004,4]
[314186967,1708054246975,-19270.16128332,0.0004,2]
[314186969,1708054246984,-255.0,0.0004,12]
[314186971,1708054246993,-2000.0,0.0004,4]
[314186973,1708054247003,-153.68565846,0.0004,2]
[314186975,1708054247012,-1000.0,0.0004,4]
[314186977,1708054247022,-255.0,0.0004,12]
[314186979,1708054247031,-1632.88808586,0.0004,5]
[314186981,1708054247040,-260.48,0.0004,2]
[314186983,1708054247050,-3000.0,0.0004,2]
[314186985,1708054247059,-151.0,0.0004,7]
[314186987,1708054247068,-224.131239,0.0004,7]
[314186989,1708054247077,-204.395707,0.0004,7]